[Event "Titled Tuesday Blitz January 31 Late 2023"]
[White "Skvortsov, Andrei"]
[Black "Kazakouski, Valery"]
[WhiteFideId "24108600"]
[BlackFideId "13507443"]
[WhiteElo "2313"]
[BlackElo "2539"]
[Result "0-1"]
[Round "03"]
[TimeControl "180+2"]
[Date "2023.01.31"]
[WhiteClock "0:00:12"]
[BlackClock "0:00:09"]

1. e4 {[%clk 0:03:00]}  c5 {[%clk 0:02:30]} 2. d4 {[%clk 0:02:57]}  cxd4 {[%clk 0:02:30]} 3. Qxd4 {[%clk 0:02:58]}  Nc6 {[%clk 0:02:30]} 4. Qd3 {[%clk 0:02:58]}  g6 {[%clk 0:02:30]} 5. Nc3 {[%clk 0:02:58]}  Bg7 {[%clk 0:02:30]} 6. Nf3 {[%clk 0:02:59]}  d6 {[%clk 0:02:30]} 7. Be2 {[%clk 0:03:00]}  Bg4 {[%clk 0:02:30]} 8. O-O {[%clk 0:02:59]}  Nf6 {[%clk 0:02:30]} 9. Nd5 {[%clk 0:02:59]}  O-O {[%clk 0:02:27]} 10. c3 {[%clk 0:02:59]}  a6 {[%clk 0:02:25]} 11. Bg5 {[%clk 0:02:56]}  Bxf3 {[%clk 0:02:13]} 12. Qxf3 {[%clk 0:02:53]}  Nd7 {[%clk 0:02:10]} 13. Qe3 {[%clk 0:02:41]}  Re8 {[%clk 0:02:05]} 14. Rfd1 {[%clk 0:02:38]}  Rc8 {[%clk 0:02:02]} 15. a4 {[%clk 0:02:30]}  Nce5 {[%clk 0:01:41]} 16. Qa7 {[%clk 0:02:13]}  Rb8 {[%clk 0:01:36]} 17. Qe3 {[%clk 0:02:07]}  f6 {[%clk 0:01:10]} 18. Bf4 {[%clk 0:02:01]}  e6 {[%clk 0:01:01]} 19. Nb4 {[%clk 0:01:59]}  Qc7 {[%clk 0:01:01]} 20. Bg3 {[%clk 0:01:53]}  g5 {[%clk 0:00:56]} 21. h4 {[%clk 0:01:37]}  h6 {[%clk 0:00:52]} 22. hxg5 {[%clk 0:01:31]}  fxg5 {[%clk 0:00:53]} 23. Rd2 {[%clk 0:01:22]}  Nf7 {[%clk 0:00:44]} 24. Bh5 {[%clk 0:01:17]}  Nde5 {[%clk 0:00:39]} 25. Qe2 {[%clk 0:01:09]}  Red8 {[%clk 0:00:35]} 26. Rad1 {[%clk 0:01:08]}  Rd7 {[%clk 0:00:32]} 27. Nd3 {[%clk 0:00:51]}  Nc4 {[%clk 0:00:31]} 28. Rc2 {[%clk 0:00:51]}  Nfe5 {[%clk 0:00:30]} 29. Nxe5 {[%clk 0:00:48]}  Bxe5 {[%clk 0:00:31]} 30. Bg4 {[%clk 0:00:48]}  Re8 {[%clk 0:00:30]} 31. Bxe5 {[%clk 0:00:43]}  Nxe5 {[%clk 0:00:31]} 32. Bh5 {[%clk 0:00:43]}  Rf8 {[%clk 0:00:31]} 33. Rcd2 {[%clk 0:00:36]}  Qc5 {[%clk 0:00:32]} 34. Bg4 {[%clk 0:00:30]}  Rf6 {[%clk 0:00:31]} 35. Rd4 {[%clk 0:00:29]}  Kg7 {[%clk 0:00:28]} 36. Bh5 {[%clk 0:00:26]}  Rd8 {[%clk 0:00:27]} 37. Qe3 {[%clk 0:00:18]}  Qc7 {[%clk 0:00:24]} 38. Be2 {[%clk 0:00:16]}  Kg6 {[%clk 0:00:21]} 39. R4d2 {[%clk 0:00:16]}  h5 {[%clk 0:00:21]} 40. Qg3 {[%clk 0:00:16]}  h4 {[%clk 0:00:19]} 41. Qe3 {[%clk 0:00:17]}  Qe7 {[%clk 0:00:15]} 42. Qb6 {[%clk 0:00:16]}  Rdf8 {[%clk 0:00:13]} 43. Qxd6 {[%clk 0:00:14]}  Qxd6 {[%clk 0:00:10]} 44. Rxd6 {[%clk 0:00:13]}  g4 {[%clk 0:00:11]} 45. Bf1 {[%clk 0:00:11]}  Kg5 {[%clk 0:00:11]} 46. R6d2 {[%clk 0:00:10]}  h3 {[%clk 0:00:10]} 47. Rc1 {[%clk 0:00:08]}  Rh8 {[%clk 0:00:09]} 48. Rcd1 {[%clk 0:00:07]}  Rfh6 {[%clk 0:00:09]} 49. g3 {[%clk 0:00:06]}  Nf3+ {[%clk 0:00:08]} 50. Kh1 {[%clk 0:00:07]}  Nxd2 {[%clk 0:00:09]} 51. Rxd2 {[%clk 0:00:08]}  Rf6 {[%clk 0:00:09]} 52. Kg1 {[%clk 0:00:08]}  Rhf8 {[%clk 0:00:09]} 53. Bc4 {[%clk 0:00:07]}  h2+ {[%clk 0:00:09]} 54. Kh1 {[%clk 0:00:04]}  Rxf2 {[%clk 0:00:09]} 55. Rxf2 {[%clk 0:00:05]}  Rxf2 {[%clk 0:00:09]} 56. b3 {[%clk 0:00:06]}  e5 {[%clk 0:00:09]} 57. Bd5 {[%clk 0:00:06]}  b6 {[%clk 0:00:10]} 58. b4 {[%clk 0:00:06]}  a5 {[%clk 0:00:10]} 59. bxa5 {[%clk 0:00:06]}  bxa5 {[%clk 0:00:11]} 60. Bc4 {[%clk 0:00:07]}  Rc2 {[%clk 0:00:10]} 61. Bb5 {[%clk 0:00:07]}  Rxc3 {[%clk 0:00:10]} 62. Kxh2 {[%clk 0:00:08]}  Rb3 {[%clk 0:00:09]} 63. Kg2 {[%clk 0:00:08]}  Rb4 {[%clk 0:00:10]} 64. Bc6 {[%clk 0:00:08]}  Rc4 {[%clk 0:00:10]} 65. Bb5 {[%clk 0:00:09]}  Rxe4 {[%clk 0:00:10]} 66. Kf2 {[%clk 0:00:09]}  Rd4 {[%clk 0:00:10]} 67. Ke3 {[%clk 0:00:10]}  Kf6 {[%clk 0:00:10]} 68. Kf2 {[%clk 0:00:11]}  Ke7 {[%clk 0:00:11]} 69. Ke3 {[%clk 0:00:11]}  Kd6 {[%clk 0:00:11]} 70. Ke2 {[%clk 0:00:12]}  Kc5 {[%clk 0:00:12]} 71. Ke3 {[%clk 0:00:12]}  Kd5 {[%clk 0:00:11]} 72. Ke2 {[%clk 0:00:11]}  Rb4 {[%clk 0:00:11]} 73. Be8 {[%clk 0:00:10]}  Rb2+ {[%clk 0:00:10]} 74. Ke3 {[%clk 0:00:10]}  Rb3+ {[%clk 0:00:10]} 75. Kf2 {[%clk 0:00:11]}  Kd4 {[%clk 0:00:11]} 76. Bd7 {[%clk 0:00:11]}  e4 {[%clk 0:00:11]} 77. Bxg4 {[%clk 0:00:11]}  Rb2+ {[%clk 0:00:11]} 78. Kf1 {[%clk 0:00:11]}  Ke3 {[%clk 0:00:11]} 79. Bh5 {[%clk 0:00:11]}  Ra2 {[%clk 0:00:10]} 80. Be8 {[%clk 0:00:11]}  Kf3 {[%clk 0:00:09]} 81. Bc6 {[%clk 0:00:12]}  Ra1# {[%clk 0:00:09]} 0-1


[Site "https://www.chess.com"]

[Event "Titled Tuesday Blitz January 31 Late 2023"]
[White "Kouskoutis, Georgios-Alexandros"]
[Black "Pulpan, Jakub"]
[WhiteFideId "4234049"]
[BlackFideId "302759"]
[WhiteElo "2295"]
[BlackElo "2427"]
[Result "0-1"]
[Round "03"]
[TimeControl "180+2"]
[Date "2023.01.31"]
[WhiteClock "0:00:01"]
[BlackClock "0:00:14"]

1. c4 {[%clk 0:02:54]}  a6 {[%clk 0:02:50]} 2. g3 {[%clk 0:02:52]}  b5 {[%clk 0:02:50]} 3. Bg2 {[%clk 0:02:51]}  Ra7 {[%clk 0:02:49]} 4. b3 {[%clk 0:02:47]}  Bb7 {[%clk 0:02:49]} 5. Nf3 {[%clk 0:02:38]}  Nf6 {[%clk 0:02:46]} 6. O-O {[%clk 0:02:37]}  g6 {[%clk 0:02:44]} 7. Bb2 {[%clk 0:02:33]}  Bg7 {[%clk 0:02:39]} 8. d4 {[%clk 0:02:28]}  O-O {[%clk 0:02:30]} 9. Nbd2 {[%clk 0:02:11]}  d6 {[%clk 0:02:21]} 10. d5 {[%clk 0:02:01]}  c6 {[%clk 0:02:10]} 11. e4 {[%clk 0:01:52]}  Nbd7 {[%clk 0:02:07]} 12. Qc2 {[%clk 0:01:18]}  Qb8 {[%clk 0:01:59]} 13. Bd4 {[%clk 0:01:09]}  Ra8 {[%clk 0:01:57]} 14. Rfc1 {[%clk 0:00:54]}  Rc8 {[%clk 0:01:56]} 15. Qd1 {[%clk 0:00:49]}  e5 {[%clk 0:01:15]} 16. dxe6 {[%clk 0:00:37]}  fxe6 {[%clk 0:01:16]} 17. e5 {[%clk 0:00:37]}  dxe5 {[%clk 0:01:13]} 18. Bc3 {[%clk 0:00:29]}  Rd8 {[%clk 0:00:49]} 19. Qe2 {[%clk 0:00:28]}  c5 {[%clk 0:00:42]} 20. Ng5 {[%clk 0:00:28]}  Bxg2 {[%clk 0:00:42]} 21. Kxg2 {[%clk 0:00:29]}  Qb6 {[%clk 0:00:37]} 22. cxb5 {[%clk 0:00:12]}  axb5 {[%clk 0:00:35]} 23. a4 {[%clk 0:00:13]}  bxa4 {[%clk 0:00:26]} 24. bxa4 {[%clk 0:00:14]}  Qc6+ {[%clk 0:00:26]} 25. Qf3 {[%clk 0:00:11]}  Nd5 {[%clk 0:00:25]} 26. Nde4 {[%clk 0:00:05]}  Rf8 {[%clk 0:00:24]} 27. Qd3 {[%clk 0:00:02]}  h6 {[%clk 0:00:18]} 28. Nf3 {[%clk 0:00:02]}  c4 {[%clk 0:00:18]} 29. Qc2 {[%clk 0:00:01]}  Rxf3 {[%clk 0:00:15]} 30. Kxf3 {[%clk 0:00:01]}  Nc5 {[%clk 0:00:14]} 0-1


[Site "https://www.chess.com"]

[Event "Titled Tuesday Blitz January 31 Late 2023"]
[White "Martinez Alcantara, Jose Eduardo"]
[Black "Mendez Fortes, Eduardo Jesus"]
[WhiteFideId "3805662"]
[BlackFideId "3502376"]
[WhiteElo "2619"]
[BlackElo "2250"]
[Result "1-0"]
[Round "03"]
[TimeControl "180+2"]
[Date "2023.01.31"]
[WhiteClock "0:01:33"]
[BlackClock "0:00:50"]

1. e4 {[%clk 0:02:52]}  e5 {[%clk 0:02:59]} 2. Nf3 {[%clk 0:02:52]}  Nc6 {[%clk 0:03:00]} 3. Nc3 {[%clk 0:02:53]}  Nf6 {[%clk 0:03:00]} 4. h3 {[%clk 0:02:54]}  d5 {[%clk 0:02:57]} 5. exd5 {[%clk 0:02:54]}  Nxd5 {[%clk 0:02:57]} 6. Bb5 {[%clk 0:02:55]}  Nxc3 {[%clk 0:02:57]} 7. bxc3 {[%clk 0:02:56]}  Bd6 {[%clk 0:02:57]} 8. d4 {[%clk 0:02:57]}  exd4 {[%clk 0:02:57]} 9. cxd4 {[%clk 0:02:58]}  O-O {[%clk 0:02:57]} 10. O-O {[%clk 0:02:58]}  Ne7 {[%clk 0:02:57]} 11. Bd3 {[%clk 0:02:58]}  Ng6 {[%clk 0:02:56]} 12. c4 {[%clk 0:02:57]}  c6 {[%clk 0:02:57]} 13. Re1 {[%clk 0:02:57]}  h6 {[%clk 0:02:56]} 14. Rb1 {[%clk 0:02:57]}  Qf6 {[%clk 0:02:53]} 15. Bb2 {[%clk 0:02:54]}  Nf4 {[%clk 0:02:44]} 16. d5 {[%clk 0:02:54]}  Qd8 {[%clk 0:02:43]} 17. Be4 {[%clk 0:02:46]}  cxd5 {[%clk 0:02:36]} 18. cxd5 {[%clk 0:02:47]}  f5 {[%clk 0:01:35]} 19. Bc2 {[%clk 0:02:36]}  Bd7 {[%clk 0:01:27]} 20. Qd2 {[%clk 0:02:28]}  Ng6 {[%clk 0:01:25]} 21. Qd4 {[%clk 0:02:09]}  Rf7 {[%clk 0:01:22]} 22. Rbd1 {[%clk 0:01:54]}  Rc8 {[%clk 0:01:09]} 23. Bb3 {[%clk 0:01:45]}  a5 {[%clk 0:01:04]} 24. Re6 {[%clk 0:01:34]}  Rf6 {[%clk 0:00:50]} 25. Rxd6 {[%clk 0:01:33]} 1-0


[Site "https://www.chess.com"]

[Event "Titled Tuesday Blitz January 31 Late 2023"]
[White "Makhnev, Denis"]
[Black "Goldin, Alexander"]
[WhiteFideId "13707647"]
[BlackFideId "2019540"]
[WhiteElo "2483"]
[BlackElo "2542"]
[Result "1-0"]
[Round "03"]
[TimeControl "180+2"]
[Date "2023.01.31"]
[WhiteClock "0:00:01"]
[BlackClock "0:00:06"]

1. d4 {[%clk 0:02:55]}  Nf6 {[%clk 0:02:59]} 2. c4 {[%clk 0:02:55]}  e6 {[%clk 0:03:00]} 3. Nf3 {[%clk 0:02:56]}  Bb4+ {[%clk 0:02:59]} 4. Bd2 {[%clk 0:02:56]}  a5 {[%clk 0:02:58]} 5. a3 {[%clk 0:02:56]}  Be7 {[%clk 0:02:54]} 6. Nc3 {[%clk 0:02:56]}  d5 {[%clk 0:02:54]} 7. Qc2 {[%clk 0:02:56]}  O-O {[%clk 0:02:49]} 8. e4 {[%clk 0:02:56]}  c5 {[%clk 0:02:31]} 9. e5 {[%clk 0:02:38]}  cxd4 {[%clk 0:02:31]} 10. exf6 {[%clk 0:02:38]}  Bxf6 {[%clk 0:02:30]} 11. Nb5 {[%clk 0:02:37]}  Nc6 {[%clk 0:02:08]} 12. Bd3 {[%clk 0:02:27]}  dxc4 {[%clk 0:01:57]} 13. Bxc4 {[%clk 0:02:27]}  e5 {[%clk 0:01:54]} 14. O-O {[%clk 0:02:22]}  Bg4 {[%clk 0:01:37]} 15. Rfe1 {[%clk 0:02:22]}  Qd7 {[%clk 0:01:31]} 16. Bd3 {[%clk 0:02:19]}  g6 {[%clk 0:01:31]} 17. Be4 {[%clk 0:02:19]}  Rac8 {[%clk 0:01:30]} 18. Qd3 {[%clk 0:02:04]}  Bg7 {[%clk 0:01:12]} 19. h3 {[%clk 0:02:04]}  Be6 {[%clk 0:01:04]} 20. Ng5 {[%clk 0:01:52]}  f5 {[%clk 0:01:03]} 21. Nxe6 {[%clk 0:00:50]}  Qxe6 {[%clk 0:01:00]} 22. Bf3 {[%clk 0:00:50]}  e4 {[%clk 0:00:58]} 23. Bd1 {[%clk 0:00:51]}  Qd7 {[%clk 0:00:51]} 24. Qb3+ {[%clk 0:00:34]}  Kh8 {[%clk 0:00:51]} 25. Bf4 {[%clk 0:00:34]}  d3 {[%clk 0:00:48]} 26. Rb1 {[%clk 0:00:29]}  h6 {[%clk 0:00:37]} 27. h4 {[%clk 0:00:27]}  Rcd8 {[%clk 0:00:33]} 28. Nd6 {[%clk 0:00:11]}  g5 {[%clk 0:00:24]} 29. hxg5 {[%clk 0:00:11]}  hxg5 {[%clk 0:00:24]} 30. Bh2 {[%clk 0:00:11]}  Be5 {[%clk 0:00:19]} 31. Bxe5+ {[%clk 0:00:11]}  Nxe5 {[%clk 0:00:20]} 32. Nc4 {[%clk 0:00:11]}  Nc6 {[%clk 0:00:19]} 33. Qc3+ {[%clk 0:00:11]}  Qg7 {[%clk 0:00:17]} 34. Ba4 {[%clk 0:00:11]}  Nd4 {[%clk 0:00:15]} 35. Qxa5 {[%clk 0:00:08]}  g4 {[%clk 0:00:13]} 36. Ne3 {[%clk 0:00:06]}  Rd6 {[%clk 0:00:11]} 37. Qb4 {[%clk 0:00:06]}  Rh6 {[%clk 0:00:10]} 38. Nf1 {[%clk 0:00:03]}  Nf3+ {[%clk 0:00:09]} 39. gxf3 {[%clk 0:00:02]}  gxf3+ {[%clk 0:00:08]} 40. Ng3 {[%clk 0:00:03]}  Rg8 {[%clk 0:00:07]} 41. Qc3 {[%clk 0:00:03]}  Rf6 {[%clk 0:00:06]} 42. Qe5 {[%clk 0:00:02]}  f4 {[%clk 0:00:06]} 43. Rxe4 {[%clk 0:00:01]} 1-0


[Site "https://www.chess.com"]

[Event "Titled Tuesday Blitz January 31 Late 2023"]
[White "Bok, Benjamin"]
[Black "Fiorito, Francisco"]
[WhiteFideId "1017063"]
[BlackFideId "180165"]
[WhiteElo "2607"]
[BlackElo "2305"]
[Result "1-0"]
[Round "03"]
[TimeControl "180+2"]
[Date "2023.01.31"]
[WhiteClock "0:00:12"]
[BlackClock "0:00:02"]

1. d4 {[%clk 0:03:00]}  Nf6 {[%clk 0:02:56]} 2. c4 {[%clk 0:03:01]}  b6 {[%clk 0:02:56]} 3. Nc3 {[%clk 0:03:00]}  Bb7 {[%clk 0:02:41]} 4. Qc2 {[%clk 0:03:00]}  d5 {[%clk 0:02:39]} 5. cxd5 {[%clk 0:03:01]}  Nxd5 {[%clk 0:02:38]} 6. e4 {[%clk 0:03:02]}  Nxc3 {[%clk 0:02:39]} 7. bxc3 {[%clk 0:03:03]}  e6 {[%clk 0:02:39]} 8. Nf3 {[%clk 0:03:01]}  c5 {[%clk 0:02:38]} 9. Bb5+ {[%clk 0:02:59]}  Bc6 {[%clk 0:02:30]} 10. Bd3 {[%clk 0:03:00]}  Be7 {[%clk 0:02:28]} 11. O-O {[%clk 0:02:58]}  O-O {[%clk 0:02:25]} 12. Rd1 {[%clk 0:02:46]}  cxd4 {[%clk 0:01:59]} 13. cxd4 {[%clk 0:02:47]}  Bb7 {[%clk 0:01:50]} 14. d5 {[%clk 0:02:23]}  exd5 {[%clk 0:01:43]} 15. exd5 {[%clk 0:02:22]}  h6 {[%clk 0:01:43]} 16. d6 {[%clk 0:02:21]}  Bf6 {[%clk 0:01:35]} 17. Bh7+ {[%clk 0:02:11]}  Kh8 {[%clk 0:01:34]} 18. Be4 {[%clk 0:02:12]}  Bxe4 {[%clk 0:01:28]} 19. Qxe4 {[%clk 0:02:12]}  Nd7 {[%clk 0:01:26]} 20. Rb1 {[%clk 0:02:10]}  Nc5 {[%clk 0:01:23]} 21. Qg4 {[%clk 0:02:04]}  Re8 {[%clk 0:01:19]} 22. Be3 {[%clk 0:01:50]}  Qd7 {[%clk 0:00:51]} 23. Qxd7 {[%clk 0:01:11]}  Nxd7 {[%clk 0:00:52]} 24. Rbc1 {[%clk 0:01:12]}  Red8 {[%clk 0:00:38]} 25. Rc7 {[%clk 0:01:11]}  Ne5 {[%clk 0:00:31]} 26. Bf4 {[%clk 0:00:31]}  Nd7 {[%clk 0:00:15]} 27. Re1 {[%clk 0:00:19]}  Kg8 {[%clk 0:00:12]} 28. g4 {[%clk 0:00:14]}  Nc5 {[%clk 0:00:08]} 29. Bg3 {[%clk 0:00:12]}  Rd7 {[%clk 0:00:07]} 30. h4 {[%clk 0:00:11]}  Rad8 {[%clk 0:00:06]} 31. g5 {[%clk 0:00:11]}  hxg5 {[%clk 0:00:05]} 32. hxg5 {[%clk 0:00:12]}  Bc3 {[%clk 0:00:05]} 33. Re7 {[%clk 0:00:13]}  Bb4 {[%clk 0:00:03]} 34. Rxa7 {[%clk 0:00:12]}  Rxa7 {[%clk 0:00:02]} 35. Rxa7 {[%clk 0:00:13]}  Ne4 {[%clk 0:00:03]} 36. d7 {[%clk 0:00:12]}  Bf8 {[%clk 0:00:02]} 37. Ne5 {[%clk 0:00:12]}  Nc5 {[%clk 0:00:02]} 38. f3 {[%clk 0:00:12]}  Be7 {[%clk 0:00:02]} 39. Bf2 {[%clk 0:00:12]}  Bd6 {[%clk 0:00:01]} 40. Bxc5 {[%clk 0:00:11]}  Bxc5+ {[%clk 0:00:02]} 41. Kg2 {[%clk 0:00:12]} 1-0


[Site "https://www.chess.com"]

[Event "Titled Tuesday Blitz January 31 Late 2023"]
[White "Terry, Renato"]
[Black "Krishnan, Varun"]
[WhiteFideId "3803457"]
[BlackFideId "5054508"]
[WhiteElo "2520"]
[BlackElo "2341"]
[Result "1-0"]
[Round "03"]
[TimeControl "180+2"]
[Date "2023.01.31"]
[WhiteClock "0:00:59"]
[BlackClock "0:00:01"]

1. e4 {[%clk 0:03:00]}  c5 {[%clk 0:02:58]} 2. Nf3 {[%clk 0:03:00]}  d6 {[%clk 0:02:58]} 3. Bb5+ {[%clk 0:03:00]}  Nd7 {[%clk 0:02:57]} 4. d4 {[%clk 0:03:00]}  cxd4 {[%clk 0:02:57]} 5. Qxd4 {[%clk 0:03:01]}  a6 {[%clk 0:02:54]} 6. Bxd7+ {[%clk 0:03:01]}  Bxd7 {[%clk 0:02:54]} 7. Bg5 {[%clk 0:03:02]}  h6 {[%clk 0:02:50]} 8. Bh4 {[%clk 0:03:02]}  Nf6 {[%clk 0:02:50]} 9. Nc3 {[%clk 0:03:01]}  e5 {[%clk 0:02:47]} 10. Qd3 {[%clk 0:03:01]}  Bc6 {[%clk 0:02:42]} 11. a4 {[%clk 0:02:58]}  Qb6 {[%clk 0:02:33]} 12. O-O {[%clk 0:02:47]}  Qb4 {[%clk 0:02:25]} 13. Bxf6 {[%clk 0:02:46]}  gxf6 {[%clk 0:02:24]} 14. Nh4 {[%clk 0:02:43]}  O-O-O {[%clk 0:02:13]} 15. Nf5 {[%clk 0:02:43]}  Rg8 {[%clk 0:02:12]} 16. Ne3 {[%clk 0:02:42]}  f5 {[%clk 0:01:43]} 17. Nxf5 {[%clk 0:02:37]}  Rg4 {[%clk 0:01:38]} 18. f3 {[%clk 0:02:35]}  Rg6 {[%clk 0:01:35]} 19. Nd5 {[%clk 0:02:25]}  Qc5+ {[%clk 0:01:25]} 20. Kh1 {[%clk 0:02:25]}  Bxd5 {[%clk 0:01:22]} 21. exd5 {[%clk 0:02:26]}  h5 {[%clk 0:01:16]} 22. Ra3 {[%clk 0:02:25]}  Kb8 {[%clk 0:01:15]} 23. Rc3 {[%clk 0:02:22]}  Qb4 {[%clk 0:01:13]} 24. b3 {[%clk 0:02:12]}  Qf4 {[%clk 0:01:04]} 25. g3 {[%clk 0:02:07]}  Qg5 {[%clk 0:00:59]} 26. Rc4 {[%clk 0:02:06]}  Rf6 {[%clk 0:00:56]} 27. g4 {[%clk 0:02:06]}  hxg4 {[%clk 0:00:44]} 28. fxg4 {[%clk 0:02:07]}  Bg7 {[%clk 0:00:43]} 29. Rb4 {[%clk 0:02:07]}  Ka8 {[%clk 0:00:37]} 30. Qc4 {[%clk 0:01:38]}  Rh8 {[%clk 0:00:29]} 31. Qc7 {[%clk 0:01:38]}  Rxh2+ {[%clk 0:00:20]} 32. Kg1 {[%clk 0:01:36]}  Rg2+ {[%clk 0:00:17]} 33. Kxg2 {[%clk 0:01:35]}  Qd2+ {[%clk 0:00:17]} 34. Rf2 {[%clk 0:01:32]}  Qxb4 {[%clk 0:00:18]} 35. Qc4 {[%clk 0:01:33]}  Qxc4 {[%clk 0:00:17]} 36. bxc4 {[%clk 0:01:34]}  Rg6 {[%clk 0:00:15]} 37. Kh3 {[%clk 0:01:28]}  Ka7 {[%clk 0:00:14]} 38. Ne7 {[%clk 0:01:24]}  Rf6 {[%clk 0:00:14]} 39. Rxf6 {[%clk 0:01:24]}  Bxf6 {[%clk 0:00:15]} 40. Nf5 {[%clk 0:01:25]}  Kb6 {[%clk 0:00:13]} 41. Nxd6 {[%clk 0:01:25]}  Ka5 {[%clk 0:00:11]} 42. Nxb7+ {[%clk 0:01:10]}  Kxa4 {[%clk 0:00:10]} 43. c5 {[%clk 0:01:02]}  e4 {[%clk 0:00:09]} 44. c6 {[%clk 0:01:00]}  e3 {[%clk 0:00:06]} 45. Kg2 {[%clk 0:00:59]}  Be5 {[%clk 0:00:02]} 46. d6 {[%clk 0:00:59]}  Kb5 {[%clk 0:00:01]} 47. c7 {[%clk 0:00:59]}  Bxd6 {[%clk 0:00:01]} 48. c8=Q {[%clk 0:00:59]} 1-0


[Site "https://www.chess.com"]

[Event "Titled Tuesday Blitz January 31 Late 2023"]
[White "Marczuk, Dominik"]
[Black "Dardha, Daniel"]
[WhiteFideId "1111264"]
[BlackFideId "240990"]
[WhiteElo "2253"]
[BlackElo "2631"]
[Result "0-1"]
[Round "03"]
[TimeControl "180+2"]
[Date "2023.01.31"]
[WhiteClock "0:00:04"]
[BlackClock "0:01:19"]

1. e4 {[%clk 0:03:00]}  c6 {[%clk 0:02:58]} 2. d4 {[%clk 0:02:55]}  d5 {[%clk 0:02:58]} 3. f3 {[%clk 0:02:56]}  e6 {[%clk 0:02:57]} 4. Be3 {[%clk 0:02:52]}  Qb6 {[%clk 0:02:57]} 5. b3 {[%clk 0:02:49]}  Nf6 {[%clk 0:02:55]} 6. e5 {[%clk 0:02:39]}  Nfd7 {[%clk 0:02:54]} 7. f4 {[%clk 0:02:34]}  c5 {[%clk 0:02:55]} 8. c3 {[%clk 0:02:34]}  Nc6 {[%clk 0:02:55]} 9. Nf3 {[%clk 0:02:34]}  cxd4 {[%clk 0:02:53]} 10. cxd4 {[%clk 0:02:34]}  Bb4+ {[%clk 0:02:54]} 11. Nbd2 {[%clk 0:02:32]}  O-O {[%clk 0:02:53]} 12. Bd3 {[%clk 0:02:26]}  f6 {[%clk 0:02:53]} 13. Qc2 {[%clk 0:02:17]}  fxe5 {[%clk 0:02:46]} 14. fxe5 {[%clk 0:02:04]}  Ndxe5 {[%clk 0:02:44]} 15. Bxh7+ {[%clk 0:02:03]}  Kh8 {[%clk 0:02:43]} 16. O-O {[%clk 0:01:36]}  Bd7 {[%clk 0:01:59]} 17. Nxe5 {[%clk 0:01:09]}  Nxe5 {[%clk 0:01:56]} 18. Rfe1 {[%clk 0:00:33]}  Ng4 {[%clk 0:01:29]} 19. Qg6 {[%clk 0:00:17]}  Bxd2 {[%clk 0:01:28]} 20. Qh5 {[%clk 0:00:06]}  Nf6 {[%clk 0:01:24]} 21. Qh3 {[%clk 0:00:04]}  Bxe3+ {[%clk 0:01:22]} 22. Rxe3 {[%clk 0:00:05]}  Nxh7 {[%clk 0:01:23]} 23. Rd1 {[%clk 0:00:05]}  Rf6 {[%clk 0:01:19]} 24. Re5 {[%clk 0:00:05]}  Raf8 {[%clk 0:01:18]} 25. Rh5 {[%clk 0:00:04]}  Qxd4+ {[%clk 0:01:19]} 26. Rxd4 {[%clk 0:00:04]}  Rf1# {[%clk 0:01:19]} 0-1


[Site "https://www.chess.com"]

[Event "Titled Tuesday Blitz January 31 Late 2023"]
[White "Tari, Aryan"]
[Black "Defend, Balint"]
[WhiteFideId "1510045"]
[BlackFideId "17004853"]
[WhiteElo "2642"]
[BlackElo "1673"]
[Result "1-0"]
[Round "03"]
[TimeControl "180+2"]
[Date "2023.01.31"]
[WhiteClock "0:01:21"]
[BlackClock "0:00:11"]

1. d4 {[%clk 0:03:00]}  Nf6 {[%clk 0:03:00]} 2. Nf3 {[%clk 0:02:58]}  e6 {[%clk 0:03:00]} 3. Bg5 {[%clk 0:02:57]}  d5 {[%clk 0:02:57]} 4. Nbd2 {[%clk 0:02:53]}  Nbd7 {[%clk 0:02:57]} 5. e3 {[%clk 0:02:54]}  h6 {[%clk 0:02:57]} 6. Bh4 {[%clk 0:02:52]}  Bd6 {[%clk 0:02:50]} 7. Bd3 {[%clk 0:02:21]}  c5 {[%clk 0:02:34]} 8. c3 {[%clk 0:02:21]}  Qc7 {[%clk 0:02:22]} 9. Qe2 {[%clk 0:01:50]}  b6 {[%clk 0:01:29]} 10. e4 {[%clk 0:01:43]}  dxe4 {[%clk 0:00:56]} 11. Nxe4 {[%clk 0:01:44]}  Be7 {[%clk 0:00:46]} 12. Bg3 {[%clk 0:01:42]}  Qd8 {[%clk 0:00:37]} 13. Nd6+ {[%clk 0:01:38]}  Kf8 {[%clk 0:00:35]} 14. Bc4 {[%clk 0:01:23]}  g6 {[%clk 0:00:30]} 15. Nxf7 {[%clk 0:01:22]}  Kxf7 {[%clk 0:00:10]} 16. Qxe6+ {[%clk 0:01:20]}  Kg7 {[%clk 0:00:11]} 17. Qf7# {[%clk 0:01:21]} 1-0


[Site "https://www.chess.com"]

[Event "Titled Tuesday Blitz January 31 Late 2023"]
[White "Ibadov, Dashgyn"]
[Black "Svane, Frederik"]
[WhiteFideId "24107514"]
[BlackFideId "12923044"]
[WhiteElo "2391"]
[BlackElo "2600"]
[Result "0-1"]
[Round "03"]
[TimeControl "180+2"]
[Date "2023.01.31"]
[WhiteClock "0:00:01"]
[BlackClock "0:00:20"]

1. e4 {[%clk 0:03:00]}  d5 {[%clk 0:03:00]} 2. exd5 {[%clk 0:03:00]}  Qxd5 {[%clk 0:02:59]} 3. Nc3 {[%clk 0:02:59]}  Qa5 {[%clk 0:02:59]} 4. d4 {[%clk 0:03:00]}  c6 {[%clk 0:02:59]} 5. Nf3 {[%clk 0:02:59]}  Nf6 {[%clk 0:02:59]} 6. Bc4 {[%clk 0:02:56]}  Bf5 {[%clk 0:02:59]} 7. Ne5 {[%clk 0:02:54]}  e6 {[%clk 0:02:58]} 8. g4 {[%clk 0:02:50]}  Be4 {[%clk 0:02:55]} 9. f3 {[%clk 0:02:43]}  Bd5 {[%clk 0:02:55]} 10. Bd3 {[%clk 0:02:31]}  Bb4 {[%clk 0:02:49]} 11. Bd2 {[%clk 0:02:30]}  Qb6 {[%clk 0:02:46]} 12. Nxd5 {[%clk 0:02:17]}  Nxd5 {[%clk 0:02:43]} 13. c3 {[%clk 0:02:15]}  Be7 {[%clk 0:02:40]} 14. Qc2 {[%clk 0:02:07]}  Bh4+ {[%clk 0:02:40]} 15. Kf1 {[%clk 0:02:07]}  Qd8 {[%clk 0:02:32]} 16. Bxh7 {[%clk 0:01:57]}  Nd7 {[%clk 0:02:01]} 17. Nxd7 {[%clk 0:01:45]}  Qxd7 {[%clk 0:01:57]} 18. Be4 {[%clk 0:01:46]}  O-O-O {[%clk 0:01:57]} 19. Kg2 {[%clk 0:01:45]}  g6 {[%clk 0:01:52]} 20. c4 {[%clk 0:01:14]}  Ne7 {[%clk 0:01:38]} 21. Be3 {[%clk 0:00:46]}  f5 {[%clk 0:01:35]} 22. Bd3 {[%clk 0:00:47]}  Bf6 {[%clk 0:01:35]} 23. Rad1 {[%clk 0:00:25]}  Qc7 {[%clk 0:01:35]} 24. Be2 {[%clk 0:00:19]}  g5 {[%clk 0:01:32]} 25. h3 {[%clk 0:00:16]}  Ng6 {[%clk 0:01:31]} 26. gxf5 {[%clk 0:00:13]}  Nh4+ {[%clk 0:01:30]} 27. Kf2 {[%clk 0:00:13]}  Nxf5 {[%clk 0:01:28]} 28. Qe4 {[%clk 0:00:08]}  Rde8 {[%clk 0:00:51]} 29. d5 {[%clk 0:00:03]}  Rh4 {[%clk 0:00:29]} 30. Qd3 {[%clk 0:00:04]}  Qg3+ {[%clk 0:00:28]} 31. Kf1 {[%clk 0:00:04]}  Rxh3 {[%clk 0:00:26]} 32. Rg1 {[%clk 0:00:02]}  Qe5 {[%clk 0:00:20]} 33. Bf2 {[%clk 0:00:02]}  exd5 {[%clk 0:00:20]} 34. cxd5 {[%clk 0:00:03]}  cxd5 {[%clk 0:00:20]} 35. Rc1+ {[%clk 0:00:01]}  Kb8 {[%clk 0:00:20]} 0-1


[Site "https://www.chess.com"]